Cogmind - Beta 17.1 @@@ ROGUE MODE // 2026.09.12 @ 14:34:33 Player: Firely Result: Self-destructed Performance ------------- Evolutions (4) 2000 Regions Visited (6) 1200 Robots Destroyed (43) 215 Value Destroyed (830) 830 Prototype IDs (10) 200 Alien Tech Used (0) 0 Bonus (800) 800 TOTAL SCORE: 5245 Bonus ------- Registered with UFD 300 Met Optimus in HQ 500 Cogmind --------- Core Integrity 344/850 Matter 285/300 Energy 100/100 System Corruption 7% Temperature Cool (0) Movement Flying (195) Ox2 Location -6/Factory Parts ------- > --- POWER (2) -------- (None) > --- PROPULSION (5) --- VTOL Module > --- UTILITY (6) ------ Small Storage Unit Signal Interpreter Hacking Suite > --- WEAPON (2) ------- Companion Sword > --- INVENTORY (8) ---- Light Fission Core Microactuators Microactuators ECM Suite Authchip [Propulsion] Improved Light Cannon Mini Grenade Launcher Peak State ------------ > --- POWER ------------ Backup Power III Light Fission Core > --- PROPULSION ------- VTOL Module VTOL Module VTOL Module VTOL Module Nuclear Pulse Thruster > --- UTILITY ---------- Small Storage Unit Structural Scanner Signal Interpreter Improved Reaction Control System Hacking Suite > --- WEAPON ----------- Companion Sword > --- INVENTORY -------- Light Fission Core VTOL Module Microactuators Microactuators ECM Suite Authchip [Propulsion] Improved Light Cannon Mini Grenade Launcher [Rating: 40] Favorites ----------- Power Light Ion Engine Engine Light Ion Engine Power Core Nuclear Core Propulsion Hover Unit Treads Light Treads Hover Unit Hover Unit Flight Unit VTOL Module Utility Signal Interpreter Device Structural Scanner Storage Small Storage Unit Processor Signal Interpreter Hackware Hacking Suite Weapon Flail Energy Gun Beam Rifle Energy Cannon Heavy Particle Cannon Ballistic Gun Battle Rifle Special Weapon Remote Datajack Impact Weapon Flail Slashing Weapon Katana Build | -11 -10 -10 -10 -9 -9 -6 ------- Run | Yrd Mat Min Sub Rec Scr Fac Slots Evolved 8 | . . . . . . 8 Power 1 | . . . . . . 1 Propulsion 3 | . . . . . . 3 Utility 4 | . . . . . . 4 Weapon . | . . . . . . . Parts Attached 51 | 6 8 2 5 2 3 25 Power 8 | 1 1 1 . . 1 4 Engine 4 | 1 1 . . . 1 1 Core 4 | . . 1 . . . 3 Reactor . | . . . . . . . Propulsion 16 | 2 . . 2 1 1 10 Treads 2 | 2 . . . . . . Leg . | . . . . . . . Wheel . | . . . . . . . Hover 5 | . . . 2 1 1 1 Flight 9 | . . . . . . 9 Utility 14 | 1 3 . 1 . . 9 Device 8 | . . . . . . 8 Storage 4 | 1 2 . 1 . . . Processor 1 | . 1 . . . . . Hackware 1 | . . . . . . 1 Protection . | . . . . . . . Artifact . | . . . . . . . Weapon 13 | 2 4 1 2 1 1 2 Energy Gun 5 | 2 2 . 1 . . . Energy Cannon 1 | . . 1 . . . . Ballistic Gun 1 | . . . . . 1 . Ballistic Cannon . | . . . . . . . Launcher . | . . . . . . . Special Weapon 1 | . . . . 1 . . Impact Weapon 3 | . 2 . 1 . . . Slashing Weapon 2 | . . . . . . 2 Piercing Weapon . | . . . . . . . Special Melee Weapon . | . . . . . . . Unidentified Prototypes . | . . . . . . . Parts Lost 26 | . 1 . 1 1 . 23 Power 7 | . 1 . . . . 6 Propulsion 13 | . . . 1 1 . 11 Utility 5 | . . . . . . 5 Weapon 1 | . . . . . . 1 Highest Loss Streak 10 | . 1 . 1 1 . 10 To Critical Strikes . | . . . . . . . Average Backups 8 | 3 8 12 7 7 7 7 Power 1 | . . 1 1 1 1 1 Propulsion 1 | 2 2 2 . . . . Utility 2 | . 2 4 2 2 2 3 Weapon 3 | 1 2 4 2 3 3 2 Tool/Special . | . . . . . . . Unused Backups 20 | . 6 5 1 . 2 6 Power 2 | . . 1 . . . 1 Propulsion 4 | . 4 . . . . . Utility 7 | . 1 2 . . 1 3 Weapon 7 | . 1 2 1 . 1 2 Tool/Special . | . . . . . . . Average Slot Usage (%) 94 | . 95 100 99 100 100 73 Engine 11 | . 12 5 8 14 14 7 Core 1 | . . 8 5 . . 2 Treads 9 | . 28 28 11 . . . Hover 15 | . . . 16 28 28 11 Flight 1 | . . . . . . 9 Device 2 | . . . . . . 15 Storage 13 | . 15 14 14 14 14 6 Processor 11 | . 10 14 14 14 14 6 Energy Gun 5 | . 14 5 8 1 . . Energy Cannon 1 | . . 8 5 . . . Ballistic Gun 1 | . . . . . 1 3 Special Weapon 4 | . . . . 12 12 . Impact Weapon 11 | . 13 14 13 14 14 1 Peak Build Rating 40 | 6 10 13 13 15 14 40 Average Rating 13 | 3 9 11 10 13 12 26 On Entrance 8 | . 6 10 13 9 12 12 Avg Prop Armor Cover (%) . | . . . . . . . Naked Turns . | . . . . . . . Heaviest Build 36 | 14 28 35 36 13 13 26 Greatest Support 40 | 40 40 40 40 15 13 22 Greatest Overweight (x) 4 | 1 . . 1 1 1 4 Average Overweight (x) . | . . . . . . . Largest Inventory Capacity 15 | 8 15 15 15 8 8 8 Average Capacity 9 | 6 10 15 10 8 8 8 Most Carried 14 | 8 14 14 12 8 8 8 Average Carried 8 | 3 8 12 7 7 7 7 Final Capacity 15 | 8 15 15 8 8 8 8 Final Carried 14 | 6 14 12 5 8 8 7 Class Distribution -------------------- 88% | Mutant 5% | Infiltrator-Mutant 3% | Scavenger-Sprinter Dominant Class ---------------- Mutant | -10/Materials Mutant | -10/Mines Mutant | -10/Subcaves Mutant | -9/Recycling Mutant | -9/Scraptown Infiltrator-Mutant | -6/Factory Resources | -11 -10 -10 -10 -9 -9 -6 ----------- Run | Yrd Mat Min Sub Rec Scr Fac Matter Collected 780 | 249 91 20 60 130 20 210 Remotely . | . . . . . . . Salvage Created 1903 | . 581 51 132 586 . 553 Parts 49 | . 12 1 3 7 . 26 Haulers Intercepted 2 | . 2 . . . . . Recyclers Shooed 4 | . 2 . . 2 . . Parts Field Recycled . | . . . . . . . Retrieved Matter . | . . . . . . . Parts Self-Destructed 12 | . . . 12 . . . Prevented . | . . . . . . . Parts Restored . | . . . . . . . Kills | -11 -10 -10 -10 -9 -9 -6 ------- Run | Yrd Mat Min Sub Rec Scr Fac Combat Hostiles Destroyed 23 | . 7 3 3 1 . 9 Melee 10 | . 1 . . . . 9 Cannons 4 | . . 2 2 . . . Classes Destroyed 11 | . 5 . 3 1 . 2 Hauler 2 | . 2 . . . . . Recycler 12 | . 3 . . 7 . 2 Operator 1 | . . . . . . 1 Turret 2 | . . . 2 . . . Watcher 3 | . 3 . . . . . Swarmer 15 | . 2 3 2 . . 8 Grunt 5 | . 5 . . . . . Sentry 1 | . . . . 1 . . Programmer 1 | . . . . . . 1 Artisan 1 | . . . 1 . . . Subdweller 1 | . . . 1 . . . Best Kill Streak 6 | . 2 3 2 5 . 6 Combat Bots Only 3 | . 2 3 1 1 . 3 Max Kills in Single Turn 1 | . 1 1 1 1 . 1 Gunslinging . | . . . . . . . Exploded . | . . . . . . . Melee 1 | . 1 . . . . 1 Uniques/NPCs Destroyed . | . . . . . . . Combat | -11 -10 -10 -10 -9 -9 -6 -------- Run | Yrd Mat Min Sub Rec Scr Fac Hostile Shots Fired 306 | . 42 15 72 5 . 172 Missed 98 | . 6 3 30 1 . 58 Hits 208 | . 36 12 42 4 . 114 Projectile 208 | . 36 12 42 4 . 114 Critical Strikes 2 | . . . . . . 2 Damage Taken 2413 | . 327 91 278 63 . 1654 Core 670 | . 89 22 53 . . 506 Absorbed by Shields . | . . . . . . . Core Remaining (%) 67 | 100 . . . . 34 . Volleys Fired 39 | . 2 5 12 20 . . Largest 2 | . 1 1 2 1 . . Hottest 131 | . 56 75 131 5 . . Shots Fired 42 | . 2 5 15 20 . . Gun 5 | . 2 . 3 . . . Cannon 17 | . . 5 12 . . . Launcher . | . . . . . . . Special 20 | . . . . 20 . . Kinetic . | . . . . . . . Thermal 22 | . 2 5 15 . . . Explosive . | . . . . . . . Electromagnetic . | . . . . . . . Robot Hit Streak 8 | . 1 1 5 8 . . Robot Miss Streak 3 | . 1 2 3 1 . . Penetration Max . | . . . . . . . Secondary Targets . | . . . . . . . Shots Hit Robots 101 | . 24 4 15 30 . 28 Core Hits 21 | . 4 2 4 2 . 9 Critical Kills 2 | . . . 1 1 . . Critical Parts Destroyed 10 | . 6 . 1 3 . . Critical Strikes 15 | . 6 . 3 4 . 2 Meltdown 1 | . . . 1 . . . Smash 12 | . 6 . 2 4 . . Melee Attacks 132 | . 39 4 9 19 . 61 Impact 71 | . 39 4 9 19 . . Slashing 61 | . . . . . . 61 Piercing . | . . . . . . . Sneak Attacks 18 | . 7 . 1 8 . 2 Combat Hostiles . | . . . . . . . Follow-up Attacks . | . . . . . . . Damage Inflicted 3820 | . 1154 154 478 807 . 1227 Guns 29 | . 15 . 14 . . . Cannons 325 | . . 100 225 . . . Explosions . | . . . . . . . Melee 3466 | . 1139 54 239 807 . 1227 Ramming . | . . . . . . . Kinetic . | . . . . . . . Thermal 354 | . 15 100 239 . . . Explosive . | . . . . . . . Electromagnetic . | . . . . . . . Impact 2239 | . 1139 54 239 807 . . Slashing 1227 | . . . . . . 1227 Piercing . | . . . . . . . Highest Corruption 7 | . . . . . . 7 Average Corruption 2 | . . . . . . 2 Corruption Purged 1 | . . . . . . 1 Corruption Blocked . | . . . . . . . Effects 4 | . . . . . . 4 Message Errors 2 | . . . . . . 2 Matter Fused 1 | . . . . . . 1 Energy Discharges 1 | . . . . . . 1 Overload Shots . | . . . . . . . Overflow Damage 1064 | . 451 21 56 314 . 222 Projectiles 5 | . . 5 . . . . Explosions . | . . . . . . . Melee 1059 | . 451 16 56 314 . 222 Knockbacks 7 | . 5 . 2 . . . Impact 7 | . 5 . 2 . . . Kinetic . | . . . . . . . Secondary . | . . . . . . . Self-Inflicted Damage . | . . . . . . . Shots . | . . . . . . . Rammed . | . . . . . . . Targets Rammed . | . . . . . . . Kicked . | . . . . . . . Crushed . | . . . . . . . Highest Temperature 190 | . 16 190 63 . . 46 Average Temperature 32 | . 12 97 26 . . 16 Received Heat Transfer 168 | . 75 . 84 9 . . Siege Activations . | . . . . . . . Martial Activations . | . . . . . . . Shielding Activations . | . . . . . . . Robots Disrupted . | . . . . . . . Combat Hostiles . | . . . . . . . Robots Corrupted 18 | . 11 1 2 4 . . Combat Hostiles 9 | . 6 1 1 1 . . Parts Fried 20 | . 9 . 3 8 . . Impact Corruptions 35 | . 20 1 3 11 . . Robots Melted 1 | . . . 1 . . . Combat Hostiles . | . . . . . . . Parts Melted . | . . . . . . . Heat Transferred 555 | . 37 148 370 . . . Parts Sabotaged . | . . . . . . . Parts Stolen . | . . . . . . . Parts Stripped . | . . . . . . . Power Chain Reactions . | . . . . . . . Alert | -11 -10 -10 -10 -9 -9 -6 ------- Run | Yrd Mat Min Sub Rec Scr Fac Maximum Alert Level . | . . . . . . . Low Security (%) 100 | 100 100 100 . 100 . 100 Level 1 . | . . . . . . . Level 2 . | . . . . . . . Level 3 . | . . . . . . . Level 4 . | . . . . . . . Level 5 . | . . . . . . . High Security . | . . . . . . . Max Security . | . . . . . . . Peak Influence 149 | . 149 61 . 25 . 130 Initial . | . . . . . . . Average 25 | . 48 11 . 2 . 17 Influence Increases 1088 | . 383 72 125 86 . 422 Destroy 0b10 Robot/C 480 | . 140 60 80 20 . 180 Destroy 0b10 Robot/NC 90 | . 40 . . 35 . 15 Destroy Leader 90 | . 40 10 . . . 40 Successful Hack 69 | . 26 . . 29 . 14 Destroy Structure 14 | . 2 2 . 2 . 8 Lose Combat Pursuer 345 | . 135 . 45 . . 165 Influence Decreases 1034 | . 383 41 156 86 . 368 Entered New Map 17 | . . . 17 . . . Time Decay 777 | . 373 41 129 86 . 148 Lost Part 240 | . 10 . 10 . . 220 Squads Dispatched 7 | . 2 1 . . . 4 Investigation 4 | . 2 1 . . . 1 Extermination 1 | . . . . . . 1 Reinforcement 2 | . . . . . . 2 Assault . | . . . . . . . Garrison . | . . . . . . . Intercept . | . . . . . . . Searches Triggered . | . . . . . . . Construction Impeded . | . . . . . . . Haulers Reinforced . | . . . . . . . Active Scanning Responses . | . . . . . . . Cargo Convoy Interrupts 1 | . . . . . . 1 Stealth | -11 -10 -10 -10 -9 -9 -6 --------- Run | Yrd Mat Min Sub Rec Scr Fac Distress Signals 4 | . . . . 2 . 2 Communications Jammed . | . . . . . . . Distress Signals . | . . . . . . . Times Spotted 67 | . 16 4 6 1 . 40 Peak Tracking Total 19 | . 4 3 3 1 . 19 Tactical Retreats 12 | . 5 . 3 . . 4 ECM-based Alert Blocks 1 | . . . . . . 1 Traps | -11 -10 -10 -10 -9 -9 -6 ------- Run | Yrd Mat Min Sub Rec Scr Fac Traps Triggered 6 | . 2 . . . . 4 Indirectly . | . . . . . . . Trap Hack Attempts . | . . . . . . . Triggered . | . . . . . . . Disarmed . | . . . . . . . Reprogrammed . | . . . . . . . Reused . | . . . . . . . Traps Extracted . | . . . . . . . Installed . | . . . . . . . Triggered . | . . . . . . . Machines | -11 -10 -10 -10 -9 -9 -6 ---------- Run | Yrd Mat Min Sub Rec Scr Fac Machines Disabled . | . . . . . . . Max in Single Turn . | . . . . . . . Machines Repaired . | . . . . . . . Machines Dismantled . | . . . . . . . Machines Sabotaged . | . . . . . . . Overloaded Fab Kills . | . . . . . . . Hacking | -11 -10 -10 -10 -9 -9 -6 --------- Run | Yrd Mat Min Sub Rec Scr Fac Machines Accessed 36 | . 8 1 1 13 6 7 Terminals 12 | . 7 . . 4 . 1 Fabricators 1 | . . . . . . 1 Repair Stations 2 | . . . . . . 2 Recycling Units 9 | . 1 . . 7 . 1 Scanalyzers 2 | . . . . . . 2 Garrison Access . | . . . . . . . Total Hacks 103 | . 21 1 3 43 25 10 Successful 85 | . 12 1 3 37 25 7 Failed 18 | . 9 . . 6 . 3 Catastrophic 4 | . 2 . . 1 . 1 Database Lockouts . | . . . . . . . Manual 4 | . . . 4 . . . Terminals 30 | . 17 . . 12 . 1 Fabricators 1 | . . . . . . 1 Repair Stations 3 | . . . . . . 3 Recycling Units 12 | . 4 . . 7 . 1 Scanalyzers 4 | . . . . . . 4 Garrison Access . | . . . . . . . Terminal Hacks 68 | . 9 1 3 30 25 . Record 51 | . . . 3 25 23 . Part Schematic 1 | . . . . 1 . . Prototype ID Bank 1 | . 1 . . . . . Open Door 2 | . . 1 . . 1 . Alert Level 2 | . 1 . . 1 . . Locate Traps 1 | . 1 . . . . . Dispatch Records 3 | . 2 . . 1 . . Maintenance Status 1 | . 1 . . . . . Transport Status 1 | . 1 . . . . . Hauler Manifests 1 | . 1 . . . . . Registered Components 1 | . 1 . . . . . Zone Layout 2 | . . . . 2 . . Proto ID Catalog 1 | . . . . . 1 . Fabricator Hacks 1 | . . . . . . 1 Network Status 1 | . . . . . . 1 Repair Station Hacks 2 | . . . . . . 2 Scan Component 1 | . . . . . . 1 Refit 1 | . . . . . . 1 Recycling Unit Hacks 11 | . 3 . . 7 . 1 Process 1 | . 1 . . . . . Report Inventory 9 | . 1 . . 7 . 1 Retrieve Matter 1 | . 1 . . . . . Scanalyzer 3 | . . . . . . 3 Insert Component 1 | . . . . . . 1 Retrieve Study 2 | . . . . . . 2 Garrison Access Hacks . | . . . . . . . Unauthorized Hacks . | . . . . . . . Terminals . | . . . . . . . Fabricators . | . . . . . . . Repair Stations . | . . . . . . . Recycling Units . | . . . . . . . Scanalyzers . | . . . . . . . Garrison Access . | . . . . . . . Data Cores Recovered 1 | . . . . . . 1 Used . | . . . . . . . Hacking Detections 16 | . 4 . . 7 . 5 Full Trace Events . | . . . . . . . Feedback Events . | . . . . . . . Feedback Blocked . | . . . . . . . Robot Schematics Acquired . | . . . . . . . Robots Built . | . . . . . . . Authchips . | . . . . . . . Time . | . . . . . . . Total Robot Build Rating . | . . . . . . . Part Schematics Acquired 1 | . . . . 1 . . Parts Built . | . . . . . . . Authchips . | . . . . . . . Time . | . . . . . . . Total Part Build Rating . | . . . . . . . Part Studies Acquired 2 | . . . . . . 2 Parts Repaired . | . . . . . . . Time . | . . . . . . . Parts Recycled . | . . . . . . . Recycled Matter 562 | . 562 . . . . . Retrieved Matter 785 | . 785 . . . . . Retrieved Components . | . . . . . . . Parts Scanalyzed . | . . . . . . . Part Schematics Acquired . | . . . . . . . Parts Damaged . | . . . . . . . Bothacking | -11 -10 -10 -10 -9 -9 -6 ------------ Run | Yrd Mat Min Sub Rec Scr Fac Used RIF Installer . | . . . . . . . Robots Hacked . | . . . . . . . Non-combat . | . . . . . . . Combat . | . . . . . . . Robot Hacks Applied . | . . . . . . . Relay Couplers Released . | . . . . . . . Fabnet Peak Effective % . | . . . . . . . Robots Rewired 3 | . . . . 3 . . Allies Hacked . | . . . . . . . Hacks Repelled . | . . . . . . . Allies | -11 -10 -10 -10 -9 -9 -6 -------- Run | Yrd Mat Min Sub Rec Scr Fac Total Allies 3 | . . . . 3 . . Largest Group 3 | . . . . 3 . . Highest-Rated Group 33 | . . . . 33 . . Highest-Rated Ally 15 | . . . . 15 . . Initial UFD Resources 22 | . . . . . . 22 Total Orders 3 | . . . . 3 . . ROAM 1 | . . . . 1 . . GUARD 2 | . . . . 2 . . Ally Attacks 3 | . . . . 3 . . Total Damage 49 | . . . . 49 . . Kills . | . . . . . . . Allies Corrupted . | . . . . . . . Allies Melted . | . . . . . . . Intel | -11 -10 -10 -10 -9 -9 -6 ------- Run | Yrd Mat Min Sub Rec Scr Fac Active Infowar (turns) 858 | . . . . . . 858 IFF 531 | . . . . . . 531 Structural 858 | . . . . . . 858 Traps 271 | . . . . . . 271 ECM 264 | . . . . . . 264 Robot Analysis Total . | . . . . . . . Derelict Logs Recovered 1 | . . . 1 . . . Drone Launches . | . . . . . . . Drone Recoveries . | . . . . . . . Exploration | -11 -10 -10 -10 -9 -9 -6 ------------- Run | Yrd Mat Min Sub Rec Scr Fac Turns Passed 5548 | 79 1297 299 826 712 1444 891 Spaces Moved 5027 | 42 713 159 591 595 1894 1033 Core 7 | 5 . . . . . 2 Treads 1079 | 37 713 159 170 . . . Legs . | . . . . . . . Wheels . | . . . . . . . Hover 3406 | . . . 421 595 1894 496 Flight 535 | . . . . . . 535 Fastest Speed 23 | 50 160 160 116 56 56 23 Average Speed 94 | 151 160 160 128 82 74 62 Slowest Speed 275 | 160 160 160 160 116 116 275 Overloaded Moves . | . . . . . . . Propulsion Burnouts . | . . . . . . . Robots Hopped . | . . . . . . . Potential Cave-ins . | . . . . . . . Cave-ins Triggered . | . . . . . . . Exploration Rate (%) 56 | 3 97 40 36 93 95 28 Regions Visited 6 Branch Regions 4 Pre-discovered Areas 3 | . . . 2 . 1 . Known Exits Taken 5 | . 1 1 1 1 1 . Unknown Exits Taken 1 | 1 . . . . . . Scrap Searched 6 | . . 1 . . 5 . Spaces Dug 14 | . 2 1 1 2 . 8 Terrain Destroyed 15 | . 2 2 1 2 . 8 Melee 14 | . 2 1 1 2 . 8 Projectile 1 | . . 1 . . . . AOE . | . . . . . . . Terrain Rammed . | . . . . . . . Walls Destroyed . | . . . . . . . Machines Disabled . | . . . . . . . Actions | -11 -10 -10 -10 -9 -9 -6 --------- Run | Yrd Mat Min Sub Rec Scr Fac Total 5593 | 55 812 194 629 779 1934 1190 Wait 234 | . 24 18 6 137 20 29 Move 5021 | 41 712 158 590 594 1893 1033 Hop . | . . . . . . . Pick Up 49 | 8 16 2 . 4 5 14 Fast Attach 23 | 4 4 . . 1 . 14 Attach 22 | 2 2 . 3 1 1 13 Detach 3 | . . . . 1 . 2 Swap 15 | . 2 2 3 1 2 5 Drop 35 | . 11 5 6 1 6 6 Fire 39 | . 2 5 12 20 . . Melee 132 | . 39 4 9 19 . 61 Ram . | . . . . . . . Kick . | . . . . . . . Crush . | . . . . . . . Escape Stasis 13 | . . . . . . 13 Rewire 7 | . . . . . 7 . Trap . | . . . . . . . Miscellaneous . | . . . . . . . Route ------- -11/Scrapyard -10/Materials (discovered 5 exits: *Mat x3 / *Min x2) -10/Mines (discovered 2 exits: *Mat / *Sub) -10/Subcaves -9/Recycling (discovered 2 exits: *Fac / *Scr) -9/Scraptown (discovered 2 exits: *Fac x2) -6/Factory (discovered 1 exit: *Fac) History --------- Turn | Location | Event 14 | -11/Scrapyard | Discovered new exit (range 14) 80 | -11/Scrapyard | Entered Materials 298 | -10/Materials | Discovered new exit (range 16) 306 | -10/Materials | Build established: Mutant 366 | -10/Materials | Discovered new exit (range 16) 424 | -10/Materials | Identified exit to Mines 628 | -10/Materials | Discovered new exit (range 5) 659 | -10/Materials | Identified exit to Materials 910 | -10/Materials | Discovered exit to Materials (range 10) 1127 | -10/Materials | Discovered exit to Materials (range 10) 1377 | -10/Materials | Entered Mines 1387 | -10/Mines | Discovered exit to Materials (range 15) 1470 | -10/Mines | Met a Derelict shopkeep closing up shop 1629 | -10/Mines | Discovered new exit (range 4) 1633 | -10/Mines | Identified exit to Subcaves 1676 | -10/Mines | Entered Subcaves 1677 | -10/Subcaves | Shifting Twisted Machinery released Sub. Shrapnel Launcher 1679 | -10/Subcaves | Shifting Twisted Machinery released Sub. Machine Gun 1749 | -10/Subcaves | Core integrity fell below 50% 1800 | -10/Subcaves | A swath of the cavern ceiling suddenly collapsed 1901 | -10/Subcaves | Learned location of Zion (-7) 1901 | -10/Subcaves | Met a Zionite searching for "candidates" 1995 | -10/Subcaves | Discovered new exit (range 16) 2033 | -10/Subcaves | Identified exit to Recycling 2204 | -10/Subcaves | Visited Clippyterm 2207 | -10/Subcaves | Learned Factory fabricator intel 2207 | -10/Subcaves | Learned Factory garrison access intel 2502 | -10/Subcaves | Entered Recycling 2503 | -9/Recycling | Met a Zionite searching for Scraptown 2503 | -9/Recycling | Joined Warlord attack on 0b10 via Recycling 2572 | -9/Recycling | Lost 4 allies 2759 | -9/Recycling | Discovered new exit (range 5) 2764 | -9/Recycling | Identified exit to Factory 3166 | -9/Recycling | Scanned before Scraplab entrance 3183 | -9/Recycling | Entered Scraplab 3193 | -9/Recycling | Discovered new exit (range 2) 3193 | -9/Recycling | Identified exit to Scraptown 3214 | -9/Recycling | Entered Scraptown 3593 | -9/Scraptown | Heard Great Nut preacher, LISTEN AND RECITE! 3597 | -9/Scraptown | Discovered new exit (range 5) 3600 | -9/Scraptown | Identified exit to Factory 3684 | -9/Scraptown | Visited Red Mages 3739 | -9/Scraptown | Visited Symbiants 3779 | -9/Scraptown | Learned location of Extension (-6) 3960 | -9/Scraptown | Visited Comm Corps 3989 | -9/Scraptown | Visited The Evicted 4006 | -9/Scraptown | Visited Artisan Demo Area 4097 | -9/Scraptown | Visited CPS Storage 4105 | -9/Scraptown | Visited Cyclists 4129 | -9/Scraptown | Visited UFD Registry 4129 | -9/Scraptown | Registered with UFD as "Protonrigger" 4141 | -9/Scraptown | Entered Cyclist Reading Room 4181 | -9/Scraptown | Visited Chapter 10 4203 | -9/Scraptown | Visited Science Testing Area 4233 | -9/Scraptown | Visited Sword Containment 4242 | -9/Scraptown | Found Prototype Slashing Weapon 4288 | -9/Scraptown | Discovered exit to Factory (range 5) 4310 | -9/Scraptown | Visited DA-N13 Charitable Foundation 4315 | -9/Scraptown | Found DCF Scrap (28 items) 4332 | -9/Scraptown | Visited Scrapoid Pod Storage 4346 | -9/Scraptown | Visited Junk Cannon Lab 4459 | -9/Scraptown | Visited Junk Repository 4480 | -9/Scraptown | Visited Curators Association 4498 | -9/Scraptown | Visited Science Guys 4559 | -9/Scraptown | Visited Cartography Club 4606 | -9/Scraptown | Met Optimus 4606 | -9/Scraptown | Accepted into 0bPrime 4658 | -9/Scraptown | Entered Factory 4658 | -6/Factory | Evolved 8 slots: Power x1, Propulsion x3, Utility x4 4659 | -6/Factory | Loaded intel: 6 fabricator locations 4660 | -6/Factory | Loaded intel: 3 garrison access locations 4797 | -6/Factory | Identified Companion Sword 5279 | -6/Factory | Lost 10 parts (2p4n3u1w) 5381 | -6/Factory | Lost 3 parts (1p2n) 5400 | -6/Factory | Discovered new exit (range 10) 5402 | -6/Factory | Identified exit to Factory 5468 | -6/Factory | Spotted B-75 Beast 5499 | -6/Factory | Cargo convoy interrupted 5547 | -6/Factory | Core integrity fell below 50% 5549 | -6/Factory | Self-destructed Last Messages --------------- P-60 Hacker resets R-10 Processor, system corruption cleaned. Nuclear Pulse Thruster destroyed. VTOL Module destroyed. Destroyed Shock Rifle. VTOL Module destroyed. Imp. Reaction Control System destroyed. Lgt. Fission Core+ destroyed. Slug penetrates Wall. Backup Power III destroyed. Slug penetrates Wall. Bumping a target to melee attack while flying prompts a warning since that may not always be the intent, as the same movement can be used to instead jump. Either repeat the action quickly to confirm an attack, or deactivate the weapon for normal jump behavior. Destroyed VTOL Module. Slug penetrates Wall. [Achievement: This Is Interesting...] Map ----- +----------------------------------------------------+ | ########## ################## ####??## ##????????? | | ########## #############?#### ######## ### ??????? | | ????????## ????????????????##/########+### ??????? | | ????????## ????????????????## # ??????? | | ???????????????????????????## # ??????? | | ???????????????????????????## # ??????? | | ??????????????????????????? + # ??????? | | ???????????????????????????## # ??????? | | ???????????????????????????## ##??????? | | ???????????????????????????##[ ##??????? | | ???????????????????????????## ##??????? | | ???????????????????????????## ##??????? | | ???????????????????????????## ##??????? | | ???????????????????????????## ##??????? | | ??????????#### ### ######??? | | ??????????#############+##########+############??? | | ?????????? ? | | ??????????? ? | | ?????????? ? | | ?????????? ?? | | ????????? ?? | | ????????? ??? | | ????????? ^ ?? | | ???????????############p########## T############?? | | ???????????##### % s ####################?? | | ??????????????## u @""##???#####???????????? | | ??????????????## " " " " T"##???????????????????? | | ??????????????## " " " "ss""##???????????????????? | | ??????????????## " " " "R ##???????????????????? | | ??????????????## " " " " # ???????????????????? | | ??????????????## " " " " t ???????????????????? | | ???????????????? " " " " # ?????????????????? | | ?????????????????? " " " ####?????????????????? | | ???????????????????" " " ####?????????????????? | | ?????????????????????" " ! ##???????????????????? | | ???????????????????? ##???????????????????? | | ????????????????????+#####+###???????????????????? | | ???????????????????? ##### ###???????????????????? | | ?????????????????????????????????????????????????? | | ?????????????????????????????????????????????????? | | ?????????????????????????????????????????????????? | | ?????????????????????????????????????????????????? | | ?????????????????????????????????????????????????? | | ?????????????????????????????????????????????????? | | ?????????????????????????????????????????????????? | | ?????????????????????????????????????????????????? | | ?????????????????????????????????????????????????? | | ?????????????????????????????????????????????????? | | ?????????????????????????????????????????????????? | | ?????????????????????????????????????????????????? | +----------------------------------------------------+ Best States ------------- Heat Dissipation 37 Energy Generation 25 Energy Capacity 400 Matter Stores 300 Matter Capacity 300 Sight Range 16 Terrain Scan Density 10 ECM Strength 1 Melee Speed Boost 20 Evasion (%) 75 Recoil Reduction 2 Offensive Hacking 10 Authchip Count 1 Item Schematics ----------------- Cryofiber Web | -9/Recycling | Hacked Robot Schematics ------------------ None Fabricated ------------ Nothing Repaired ---------- Nothing Studied --------- Lgt. Deuterium Engine | -6/Factory | Hacked Lgt. Fission Core | -6/Factory | Hacked Alien Tech Used ----------------- None Achievements -------------- A New Friend Art Critic Bob, First Of His Name Dodgeball, But With Guns Fitting Room Part-time Excavator This Is Interesting... Challenges ------------ None Game ------ Seed AluminumAbsorptionMegatreads Manual? 0 Play Time 01:43:25 Cumulative 28.9 hours Start 2026.09.12 @ 12:51:41 End 2026.09.12 @ 14:34:33 Sessions 1 Manual Loads 0 Difficulty Rogue Special Mode None Game No. 16 Rogue 16 Adventurer 0 Explorer 0 Win Type - Total 0 Types 0/0/0/0/0/0/0/0/0/0 Lore% 26 Gallery% 18 Achievement% 17 Wizard Run 0 Options --------- Layout 1 ASCII 0 Keyboard 0 Movement Numpad Keybinds 0 Fullscreen 1 Font 32/SmallcapsGlow Map View 50x40 Zoom Use 0% Tactical HUD 0 Map Filters NONE Filters NONE Steam 1 RUN: 16ff28f3-d57d-4594-8b4e-7da0833d8e85